Cogmind - Beta 14 @@@ ROGUE MODE // 2024.08.18 @ 00:44:58 Player: Lillith Result: Destroyed by D-53 Grenadier with Mini Grenade Launcher Performance ------------- Evolutions (0) 0 Regions Visited (2) 400 Robots Destroyed (18) 90 Value Destroyed (405) 405 Prototype IDs (0) 0 Alien Tech Used (0) 0 Bonus (28) 28 TOTAL SCORE: 923 Bonus ------- Follower Combat Kills 28 Cogmind --------- Core Integrity 0/250 Matter 273/300 Energy 100/100 System Corruption 0% Temperature Cool (0) Movement Treading (240) Ox1 Location -10/Mines Parts ------- > --- POWER (1) -------- (None) > --- PROPULSION (2) --- Improved Treads Improved Treads > --- UTILITY (2) ------ Cooling System Huge Storage Unit > --- WEAPON (2) ------- Shotgun Shotgun > --- INVENTORY (25) --- Ion Engine Light Ion Engine Light Treads Light Treads Improved Treads Improved Treads Wheel Wheel Cooling System Structural Scanner Seismic Detector Beamcaster Light Assault Rifle Light Assault Rifle Light Assault Rifle Light Assault Rifle Light Assault Rifle Light Assault Rifle Light Assault Rifle Light Assault Rifle Shotgun Shotgun Grenade Launcher Flail Makeshift Axe Peak State ------------ > --- POWER ------------ Light Nuclear Core > --- PROPULSION ------- Improved Treads Improved Treads > --- UTILITY ---------- Improved Heat Sink Huge Storage Unit > --- WEAPON ----------- Shotgun Shotgun > --- INVENTORY -------- Ion Engine Light Ion Engine Light Treads Improved Treads Improved Treads Wheel Wheel Structural Scanner Seismic Detector Light Assault Rifle Light Assault Rifle Light Assault Rifle Light Assault Rifle Light Assault Rifle Light Assault Rifle Light Assault Rifle Light Assault Rifle Grenade Launcher [Rating: 17] Favorites ----------- Power Light Nuclear Core Engine Ion Engine Power Core Light Nuclear Core Propulsion Improved Treads Treads Improved Treads Wheel Wheel Utility Huge Storage Unit Device Cooling System Storage Huge Storage Unit Weapon Shotgun Ballistic Gun Shotgun Build | -11 -10 -10 ------- Run | Yrd Mat Min Slots Evolved . | . . . Power . | . . . Propulsion . | . . . Utility . | . . . Weapon . | . . . Parts Attached 18 | 7 11 . Power 2 | 1 1 . Engine 1 | 1 . . Core 1 | . 1 . Reactor . | . . . Propulsion 5 | 2 3 . Treads 4 | 2 2 . Leg . | . . . Wheel 1 | . 1 . Hover . | . . . Flight . | . . . Utility 5 | 2 3 . Device 3 | 1 2 . Storage 2 | 1 1 . Processor . | . . . Hackware . | . . . Protection . | . . . Artifact . | . . . Weapon 6 | 2 4 . Energy Gun . | . . . Energy Cannon . | . . . Ballistic Gun 6 | 2 4 . Ballistic Cannon . | . . . Launcher . | . . . Special Weapon . | . . . Impact Weapon . | . . . Slashing Weapon . | . . . Piercing Weapon . | . . . Special Melee Weapon . | . . . Unidentified Prototypes . | . . . Parts Lost 3 | . 2 1 Power 1 | . . 1 Propulsion 1 | . 1 . Utility 1 | . 1 . Weapon . | . . . Highest Loss Streak 1 | . 1 1 To Critical Strikes . | . . . Average Slot Usage (%) 99 | . 98 99 Engine 3 | . 4 . Core 10 | . 9 13 Treads 26 | . 26 28 Device 13 | . 13 14 Storage 14 | . 14 14 Ballistic Gun 28 | . 28 28 Peak Build Rating 17 | 7 17 17 Average Rating 13 | 5 12 16 On Entrance 7 | . 7 16 Naked Turns . | . . . Heaviest Build 93 | 13 93 93 Greatest Support 46 | 40 46 46 Greatest Overweight (x) 8 | . 8 2 Average Overweight (x) 1 | . 2 1 Largest Inventory Capacity 25 | 8 25 25 Average Capacity 22 | 7 23 25 Most Carried 25 | 5 23 25 Average Carried 16 | 3 14 23 Final Capacity 25 | 8 25 25 Final Carried 25 | 5 23 25 Class Distribution -------------------- 94% | Mutant 5% | Scavenger-Mutant Dominant Class ---------------- Mutant | -10/Materials Mutant | -10/Mines Resources | -11 -10 -10 ----------- Run | Yrd Mat Min Matter Collected 530 | 289 131 110 Remotely . | . . . Salvage Created 551 | 46 473 32 Parts 38 | 5 25 8 Haulers Intercepted 2 | . 2 . Recyclers Shooed . | . . . Parts Field Recycled . | . . . Retrieved Matter . | . . . Parts Self-Destructed . | . . . Prevented . | . . . Kills | -11 -10 -10 ------- Run | Yrd Mat Min Combat Hostiles Destroyed 13 | . 10 3 Guns 13 | . 10 3 Classes Destroyed 5 | 1 3 1 Tunneler 3 | 2 . 1 Hauler 2 | . 2 . Swarmer 5 | . 3 2 Grunt 7 | . 7 . Demolisher 1 | . . 1 Best Kill Streak 2 | 2 2 2 Combat Bots Only 2 | . 2 2 Max Kills in Single Turn 2 | 1 1 2 Gunslinging . | . . . Exploded . | . . . Melee . | . . . Uniques/NPCs Destroyed . | . . . Combat | -11 -10 -10 -------- Run | Yrd Mat Min Hostile Shots Fired 89 | . 73 16 Missed 23 | . 21 2 Damage Taken 1158 | . 583 575 Core 296 | . 117 179 Absorbed by Shields . | . . . Core Remaining (%) 100 | 100 . . Volleys Fired 72 | 10 54 8 Largest 2 | 2 2 2 Hottest 46 | 40 40 46 Shots Fired 144 | 20 108 16 Gun 144 | 20 108 16 Cannon . | . . . Launcher . | . . . Special . | . . . Kinetic 144 | 20 108 16 Thermal . | . . . Explosive . | . . . Electromagnetic . | . . . Robot Hit Streak 11 | 8 11 3 Robot Miss Streak 7 | 1 3 7 Penetration Max . | . . . Secondary Targets 1 | . . 1 Max Gunslinging Chain 1 | . . 1 Shots Hit Robots 92 | 16 66 10 Core Hits 47 | 5 35 7 Critical Kills . | . . . Critical Parts Destroyed 2 | 1 . 1 Critical Strikes 2 | 1 . 1 Destroy 2 | 1 . 1 Melee Attacks . | . . . Impact . | . . . Slashing . | . . . Piercing . | . . . Sneak Attacks . | . . . Combat Hostiles . | . . . Follow-up Attacks . | . . . Damage Inflicted 855 | 132 565 158 Guns 855 | 132 565 158 Cannons . | . . . Explosions . | . . . Melee . | . . . Ramming . | . . . Kinetic 855 | 132 565 158 Thermal . | . . . Explosive . | . . . Electromagnetic . | . . . Impact . | . . . Slashing . | . . . Piercing . | . . . Highest Corruption . | . . . Average Corruption . | . . . Corruption Purged . | . . . Corruption Blocked . | . . . Overload Shots . | . . . Overflow Damage . | . . . Projectiles . | . . . Explosions . | . . . Melee . | . . . Knockbacks . | . . . Impact . | . . . Kinetic . | . . . Secondary . | . . . Self-Inflicted Damage . | . . . Shots . | . . . Rammed . | . . . Targets Rammed . | . . . Kicked . | . . . Crushed . | . . . Highest Temperature 18 | . 18 . Average Temperature 9 | . 9 . Received Heat Transfer 243 | . 243 . Siege Activations . | . . . Robots Corrupted . | . . . Combat Hostiles . | . . . Parts Fried . | . . . Impact Corruptions . | . . . Robots Melted . | . . . Combat Hostiles . | . . . Parts Melted . | . . . Heat Transferred . | . . . Parts Sabotaged . | . . . Parts Stolen . | . . . Parts Stripped . | . . . Power Chain Reactions . | . . . Alert | -11 -10 -10 ------- Run | Yrd Mat Min Peak Influence 191 | 10 191 148 Initial 6 | . 6 . Average 53 | 2 66 40 Maximum Alert Level . | . . . Low Security (%) 100 | 100 100 100 Level 1 . | . . . Level 2 . | . . . Level 3 . | . . . Level 4 . | . . . Level 5 . | . . . High Security . | . . . Max Security . | . . . Squads Dispatched 1 | . 1 . Investigation . | . . . Extermination . | . . . Reinforcement 1 | . 1 . Assault . | . . . Garrison . | . . . Intercept . | . . . Searches Triggered . | . . . Construction Impeded . | . . . Haulers Reinforced . | . . . Active Scanning Responses . | . . . Cargo Convoy Interrupts . | . . . Stealth | -11 -10 -10 --------- Run | Yrd Mat Min Distress Signals 1 | . 1 . Communications Jammed . | . . . Distress Signals . | . . . Times Spotted 29 | . 19 10 Peak Tracking Total 4 | . 4 4 Tactical Retreats 2 | . 2 . Traps | -11 -10 -10 ------- Run | Yrd Mat Min Traps Triggered . | . . . Indirectly . | . . . Trap Hack Attempts . | . . . Triggered . | . . . Disarmed . | . . . Reprogrammed . | . . . Reused . | . . . Traps Extracted . | . . . Installed . | . . . Triggered . | . . . Machines | -11 -10 -10 ---------- Run | Yrd Mat Min Machines Disabled . | . . . Max in Single Turn . | . . . Machines Repaired . | . . . Machines Dismantled . | . . . Machines Sabotaged . | . . . Overloaded Fab Kills . | . . . Hacking | -11 -10 -10 --------- Run | Yrd Mat Min Machines Accessed 5 | . 5 . Terminals 4 | . 4 . Fabricators . | . . . Repair Stations . | . . . Recycling Units 1 | . 1 . Scanalyzers . | . . . Garrison Access . | . . . Total Hacks 10 | . 10 . Successful 7 | . 7 . Failed 3 | . 3 . Catastrophic . | . . . Database Lockouts . | . . . Manual 8 | . 8 . Terminals 8 | . 8 . Fabricators . | . . . Repair Stations . | . . . Recycling Units 2 | . 2 . Scanalyzers . | . . . Garrison Access . | . . . Terminal Hacks 1 | . 1 . Zone Layout 1 | . 1 . Fabricator Hacks . | . . . Repair Station Hacks . | . . . Recycling Unit Hacks 1 | . 1 . Retrieve Components 1 | . 1 . Scanalyzer . | . . . Garrison Access Hacks . | . . . Unauthorized Hacks 5 | . 5 . Terminals 4 | . 4 . Skim 4 | . 4 . Fabricators . | . . . Repair Stations . | . . . Recycling Units 1 | . 1 . Mask 1 | . 1 . Scanalyzers . | . . . Garrison Access . | . . . Data Cores Recovered . | . . . Used . | . . . Hacking Detections 5 | . 5 . Full Trace Events . | . . . Feedback Events . | . . . Feedback Blocked . | . . . Robot Schematics Acquired . | . . . Robots Built . | . . . Authchips . | . . . Time . | . . . Total Robot Build Rating . | . . . Part Schematics Acquired . | . . . Parts Built . | . . . Authchips . | . . . Time . | . . . Total Part Build Rating . | . . . Parts Repaired . | . . . Time . | . . . Parts Recycled . | . . . Recycled Matter . | . . . Retrieved Matter . | . . . Retrieved Components . | . . . Parts Scanalyzed . | . . . Part Schematics Acquired . | . . . Parts Damaged . | . . . Bothacking | -11 -10 -10 ------------ Run | Yrd Mat Min Used RIF Installer . | . . . Robots Hacked . | . . . Non-combat . | . . . Combat . | . . . Robot Hacks Applied . | . . . Relay Couplers Released . | . . . Fabnet Peak Effective % . | . . . Robots Rewired . | . . . Allies Hacked . | . . . Hacks Repelled . | . . . Allies | -11 -10 -10 -------- Run | Yrd Mat Min Total Allies 5 | . . 5 Largest Group 5 | . . 5 Highest-Rated Group 90 | . . 90 Highest-Rated Ally 31 | . . 31 Total Orders . | . . . Ally Attacks 18 | . . 18 Total Damage 189 | . . 189 Kills 6 | . . 6 Allies Corrupted . | . . . Allies Melted . | . . . Intel | -11 -10 -10 ------- Run | Yrd Mat Min Robot Analysis Total . | . . . Derelict Logs Recovered . | . . . Drone Launches . | . . . Drone Recoveries . | . . . Exploration | -11 -10 -10 ------------- Run | Yrd Mat Min Turns Passed 2165 | 158 1294 713 Spaces Moved 719 | 79 427 213 Core 8 | 8 . . Treads 655 | 71 371 213 Legs . | . . . Wheels 56 | . 56 . Hover . | . . . Flight . | . . . Fastest Speed 50 | 50 160 240 Average Speed 261 | 148 253 319 Slowest Speed 480 | 160 480 320 Overloaded Moves . | . . . Propulsion Burnouts . | . . . Robots Hopped . | . . . Cave-ins Triggered . | . . . Exploration Rate (%) 34 | 6 61 37 Regions Visited 2 Branch Regions 1 Pre-discovered Areas . | . . . Known Exits Taken . | . . . Unknown Exits Taken 2 | 1 1 . Scrap Searched 1 | . . 1 Spaces Dug . | . . . Terrain Destroyed . | . . . Melee . | . . . Projectile . | . . . AOE . | . . . Terrain Rammed . | . . . Walls Destroyed . | . . . Machines Disabled . | . . . Actions | -11 -10 -10 --------- Run | Yrd Mat Min Total 886 | 100 555 231 Wait 50 | . 42 8 Move 717 | 78 426 213 Hop . | . . . Pick Up 22 | 5 15 2 Fast Attach 10 | 7 3 . Attach 1 | . 1 . Detach 2 | . 2 . Swap 7 | . 7 . Drop 5 | . 5 . Fire 72 | 10 54 8 Melee . | . . . Ram . | . . . Kick . | . . . Crush . | . . . Escape Stasis . | . . . Rewire . | . . . Trap . | . . . Miscellaneous . | . . . Route ------- -11/Scrapyard -10/Materials (discovered 2 exits: [*Mat] / [*Min]) -10/Mines (discovered 1 exit: [*Mat]) History --------- Turn | Location | Event 62 | -11/Scrapyard | Discovered new exit (range 16) 159 | -11/Scrapyard | Entered Materials 317 | -10/Materials | Build established: Mutant 846 | -10/Materials | Discovered new exit (range 15) 1056 | -10/Materials | Discovered new exit (range 9) 1453 | -10/Materials | Entered Mines 1463 | -10/Mines | Assisted by bots powering up and referring to "LRC-V3" 1747 | -10/Mines | Discovered new exit (range 10) 1945 | -10/Mines | Core integrity fell below 50% 2105 | -10/Mines | Assembled infested the area 2159 | -10/Mines | Core integrity fell below 20% 2166 | -10/Mines | Destroyed by D-53 Grenadier with Mini Grenade Launcher Last Messages --------------- 02021_ R-06 Scavenger collects Imp. Heat Sink. 02022_ K-01 Serf collects debris. 02036_ Acquired Mak. Axe. 02038_ K-01 Serf collects debris. 02105_ ALERT: Infestation in the mines, dispatching Demolisher response squad. 02150_ Mercenary 1a destroyed. 02150_ Pulverizer disabled. 02150_ Trooper 1b destroyed. 02151_ Trooper 1a destroyed. 02158_ The unstable cave ceiling collapses. 02159_ Lgt. Nuclear Core destroyed. 02160_ The unstable cave ceiling collapses. 02160_ D-53 Grenadier destroyed. 02160_ Switching to secondary target: D-53 Grenadier. 02160_ G-34 Mercenary destroyed. 02161_ The unstable cave ceiling collapses. 02164_ G-47 Trooper destroyed. 02166_ The unstable cave ceiling collapses. Map ----- +----------------------------------------------------+ | ??????????????????????????## ######???????????? | | ???????????????????????????## #???????????? | | ????????????????????????????# ### ###?????????? | | ??????????????????????? #?# #?????????? | | ??????????????????????######## ##?#### #?????????? | | ?????????????????????????????###?????# #?????????? | | ?????????????????????????????????????# #?????????? | | ?????????????????????????????????????# #?????????? | | ?????????????????????????????????????# #?????????? | | ?????????????????????????????????????# #?????????? | | ?????????????????????????????????????# ######????? | | ?????????????????????????????????????# #????? | | ?????????????????????????????????????##### #????? | | ???????????????????????????????????????### #????? | | ????????????????????????????????# ###### #????? | | ??????????????????????????????### % #????? | | ???????????????????????? #????? | | ???????????????????????????#### ## ###% ##????? | | ??????????????????????????????# ?# ## % ##?????? | | ??????????????????????????????# ## ##??????? | | ?????????????????????########## % ##??????? | | ????????????????#???## # ##?????? | | ????????????????# ### # ### #?????? | | ????????????????# d #??## #?????? | | ????????????????#### ## ##??# #?????? | | ??????????????????# #@ ### #### #?????? | | ??????????????????# ## ## #?????? | | ????????????# %*% ### = ##?????? | | ????????????# """ = ! % =%%= ##??????? | | ??????????????""" # % ** #???????? | | ??????????????""" ?# ###### ##???????? | | ?????????????? ??# #????# ##????????? | | ????????????? ????##### ####????# ##?????????? | | ?????????????#?????????###???????## ##??????????? | | ??????????????????????????????????####???????????? | | ?????????????????????????????????????????????????? | | ?????????????????????????????????????????????????? | | | | | | | | | | | | | | | | | | | | | | | | | | | +----------------------------------------------------+ Best States ------------- Heat Dissipation 47 Energy Generation 14 Energy Capacity 250 Matter Stores 300 Matter Capacity 300 Sight Range 16 Terrain Scan Density 10 Evasion (%) 40 Recoil Reduction 2 Item Schematics ----------------- None Robot Schematics ------------------ None Fabricated ------------ Nothing Alien Tech Used ----------------- None Achievements -------------- None Challenges ------------ None Game ------ Seed LightningZioniteWartreads Manual? 0 Play Time 00:09:37 Cumulative 32.8 hours Start 2024.08.18 @ 00:37:02 End 2024.08.18 @ 00:44:58 Sessions 1 Manual Loads 0 Difficulty Rogue Special Mode None Game No. 57 Rogue 57 Adventurer 0 Explorer 0 Win Type - Total 0 Types 0/0/0/0/0/0/0/0/0 Lore% 35 Gallery% 29 Achievement% 28 Wizard Run 0 Options --------- Layout 2 ASCII 0 Keyboard 1 Movement Arrows Keybinds 0 Fullscreen 2 Font 32/SmallcapsGlow Map View 50x44 Zoom Use 0% Tactical HUD 1 Map Filters NONE Filters NONE Steam 1 RUN: 1d7114b3-0efb-4352-a069-2467debab1c0